[Event "58th Akiba Rubinstein D 2022"]
[Site "Polanica-Zdroj"]
[Date "2022.08.17"]
[Round "5.11"]
[White "Marek, Grzegorz"]
[Black "Markiewicz, Czeslaw"]
[Result "1/2-1/2"]
[ECO "A01"]
[WhiteElo "1478"]
[BlackElo "1750"]
[Annotator "NA RC"]
[PlyCount "78"]
[EventDate "2022.08.13"]
[EventCountry "POL"]
[SourceTitle "playchess.com"]
[Source "ChessBase"]
[SourceQuality "1"]
[TimeControl "40/5400+30:1800+30"]

1. b3 {[%emt 0:00:04]} Nf6 {[%emt 0:00:45]} 2. Bb2 {[%emt 0:00:10]} e6 {[%emt 0:00:11]} 3. e3 {[%emt 0:00:11]} d5 {[%emt 0:00:22]} 4. Nf3 {[%emt 0:00:31]} Be7 {[%emt 0:00:14]} 5. Be2 {[%emt 0:01:11]} O-O {[%emt 0:00:08]} 6. O-O {[%emt 0:00:32]} b6 {[%emt 0:00:28]} 7. d4 {[%emt 0:05:30]} Bb7 {[%emt 0:00:35]} 8. Nbd2 {[%emt 0:03:56]} Nbd7 {[%emt 0:01:39]} 9. Rc1 {[%emt 0:02:13]} a5 {[%emt 0:00:35]} 10. c4 {[%emt 0:02:40]} c5 {[%emt 0:03:51]} 11. Qc2 {[%emt 0:06:48]} Ne4 {[%emt 0:07:53]} 12. Nxe4 {[%emt 0:03:17]} dxe4 {[%emt 0:00:06]} 13. Ne5 {[%emt 0:01:49]} cxd4 {[%emt 0:10:07]} 14. Nxd7 {[%emt 0:07:34]} Qxd7 {[%emt 0:00:24]} 15. Bxd4 {[%emt 0:00:39]} Qc7 {[%emt 0:01:12]} 16. Rfd1 {[%emt 0:07:49]} e5 {[%emt 0:01:28]} 17. Bb2 {[%emt 0:00:41]} f5 {[%emt 0:02:14]} 18. Qc3 {[%emt 0:09:14]} Bd6 {[%emt 0:01:27]} 19. c5 {[%emt 0:10:58]} bxc5 {[%emt 0:03:22]} 20. Ba3 {[%emt 0:00:12]} Rac8 {[%emt 0:06:13]} 21. Rxd6 {[%emt 0:01:54]} Qxd6 {[%emt 0:00:23]} 22. Bxc5 {[%emt 0:00:05]} Qf6 {[%emt 0:09:38]} 23. Bc4+ {[%emt 0:00:40]} Kh8 {[%emt 0:00:16]} 24. Bxf8 {[%emt 0:00:10]} Rxf8 {[%emt 0:00:12]} 25. Qxa5 {[%emt 0:04:41]} f4 {[%emt 0:00:23]} 26. Qa7 {[%emt 0:06:47]} Bc8 {[%emt 0:05:56]} 27. Bf1 {[%emt 0:06:31]} h5 {[%emt 0:06:06]} 28. Qc5 {[%emt 0:07:03]} h4 {[%emt 0:00:30]} 29. Qxc8 {[%emt 0:01:32]} Rxc8 {[%emt 0:00:35]} 30. Rxc8+ {[%emt 0:00:04]} Kh7 {[%emt 0:00:18]} 31. Rc3 {[%emt 0:01:06]} h3 {[%emt 0:03:39]} 32. g3 {[%emt 0:01:25]} fxg3 {[%emt 0:01:15]} 33. hxg3 {[%emt 0:00:04]} h2+ {[%emt 0:01:07]} 34. Kxh2 {[%emt 0:00:15]} Qxf2+ {[%emt 0:00:25]} 35. Bg2 {[%emt 0:00:04]} Qd2 {[%emt 0:03:20]} 36. Rc4 {[%emt 0:01:00]} Qxa2 {[%emt 0:01:04]} 37. Rxe4 {[%emt 0:00:37]} Qxb3 {[%emt 0:00:42]} 38. Rxe5 {[%emt 0:00:14]} Kg6 {[%emt 0:01:01]} 39. e4 {[%emt 0:01:18]} Qe3 {[%emt 0:02:15]} 1/2-1/2

[Event "58th Akiba Rubinstein D 2022"]
[Site "Polanica-Zdroj"]
[Date "2022.08.17"]
[Round "5.12"]
[White "Owoc, Jakub"]
[Black "Garwacki, Kornel"]
[Result "1-0"]
[ECO "E92"]
[WhiteElo "1756"]
[BlackElo "1571"]
[Annotator "NA RC"]
[PlyCount "59"]
[EventDate "2022.08.13"]
[EventCountry "POL"]
[SourceTitle "playchess.com"]
[Source "ChessBase"]
[SourceQuality "1"]
[TimeControl "40/5400+30:1800+30"]

1. d4 {[%emt 0:00:01]} Nf6 {[%emt 0:00:02]} 2. c4 {[%emt 0:00:06]} d6 {[%emt 0:00:02]} 3. Nc3 {[%emt 0:00:08]} g6 {[%emt 0:00:03]} 4. e4 {[%emt 0:00:11]} Bg7 {[%emt 0:00:03]} 5. Nf3 {[%emt 0:00:06]} O-O {[%emt 0:00:10]} 6. Be2 {[%emt 0:00:03]} e5 {[%emt 0:00:18]} 7. Be3 {[%emt 0:00:05]} exd4 {[%emt 0:00:05]} 8. Nxd4 {[%emt 0:00:06]} Re8 {[%emt 0:00:04]} 9. f3 {[%emt 0:00:06]} Nbd7 {[%emt 0:00:53]} 10. O-O {[%emt 0:00:48]} a5 {[%emt 0:00:56]} 11. Qd2 {[%emt 0:00:34]} Nc5 {[%emt 0:00:20]} 12. Rfe1 {[%emt 0:00:56]} c6 {[%emt 0:03:11]} 13. Rad1 {[%emt 0:00:22]} Qe7 {[%emt 0:04:44]} 14. Nc2 {[%emt 0:00:27]} Bf8 {[%emt 0:03:18]} 15. Bf4 {[%emt 0:01:01]} Rd8 {[%emt 0:02:58]} 16. e5 {[%emt 0:00:24]} Ne8 {[%emt 0:01:14]} 17. Bf1 {[%emt 0:00:57]} Ne6 {[%emt 0:07:19]} 18. exd6 {[%emt 0:20:56]} Nxd6 {[%emt 0:00:36]} 19. Qf2 {[%emt 0:06:03]} Nf5 {[%emt 0:04:15]} 20. Bd2 {[%emt 0:13:49]} Qc7 {[%emt 0:04:53]} 21. Ne4 {[%emt 0:00:12]} Bg7 {[%emt 0:01:49]} 22. Bc3 {[%emt 0:01:14]} Bxc3 {[%emt 0:01:45]} 23. bxc3 {[%emt 0:00:02]} Rxd1 {[%emt 0:08:43]} 24. Rxd1 {[%emt 0:00:08]} c5 {[%emt 0:01:00]} 25. g4 {[%emt 0:00:56]} Ne7 {[%emt 0:02:16]} 26. Qh4 {[%emt 0:00:16]} Nf8 27. Nf6+ {[%emt 0:00:19]} Kh8 {[%emt 0:06:51]} 28. Ne8 {[%emt 0:00:22]} Qe5 {[%emt 0:01:21]} 29. Re1 {[%emt 0:00:02]} Qxc3 {[%emt 0:01:50]} 30. Qxe7 {[%emt 0:00:07]} 1-0

[Event "58th Akiba Rubinstein D 2022"]
[Site "Polanica-Zdroj"]
[Date "2022.08.17"]
[Round "5.13"]
[White "Serewa, Antoni"]
[Black "Ugorek, Kacper"]
[Result "1/2-1/2"]
[ECO "E61"]
[WhiteElo "1542"]
[BlackElo "1747"]
[Annotator "NA RC"]
[PlyCount "47"]
[EventDate "2022.08.13"]
[EventCountry "POL"]
[SourceTitle "playchess.com"]
[Source "ChessBase"]
[SourceQuality "1"]
[TimeControl "40/5400+30:1800+30"]

1. d4 {[%emt 0:00:01]} Nf6 {[%emt 0:00:07]} 2. c4 {[%emt 0:00:03]} g6 {[%emt 0:00:09]} 3. Nc3 {[%emt 0:00:06]} Bg7 {[%emt 0:00:05]} 4. Nf3 {[%emt 0:00:09]} O-O {[%emt 0:00:08]} 5. Bg5 {[%emt 0:00:26]} d6 {[%emt 0:00:46]} 6. e3 {[%emt 0:00:51]} h6 {[%emt 0:01:00]} 7. Bh4 {[%emt 0:00:05]} g5 {[%emt 0:01:07]} 8. Bg3 {[%emt 0:00:05]} Nh5 {[%emt 0:00:31]} 9. Qc2 {[%emt 0:02:21]} e6 {[%emt 0:03:15]} 10. Be2 {[%emt 0:02:08]} f5 {[%emt 0:01:28]} 11. O-O {[%emt 0:15:05]} Nxg3 {[%emt 0:01:23]} 12. hxg3 {[%emt 0:00:05]} Nd7 {[%emt 0:02:39]} 13. Rad1 {[%emt 0:03:37]} b6 {[%emt 0:15:10]} 14. b4 {[%emt 0:09:16]} a5 {[%emt 0:01:05]} 15. a3 {[%emt 0:00:30]} axb4 {[%emt 0:02:14]} 16. axb4 {[%emt 0:00:07]} Bb7 {[%emt 0:08:36]} 17. c5 {[%emt 0:10:42]} d5 {[%emt 0:16:35]} 18. Na4 {[%emt 0:07:37]} bxc5 {[%emt 0:05:37]} 19. Nxc5 {[%emt 0:02:54]} Nxc5 {[%emt 0:00:01]} 20. Qxc5 {[%emt 0:01:56]} Qd6 {[%emt 0:03:20]} 21. Rc1 {[%emt 0:04:40]} Rfc8 {[%emt 0:00:25]} 22. Rc2 {[%emt 0:07:16]} Qxc5 {[%emt 0:12:02]} 23. bxc5 {[%emt 0:03:52]} Bc6 {[%emt 0:01:57]} 24. Rb1 {[%emt 0:04:18]} 1/2-1/2

[Event "58th Akiba Rubinstein D 2022"]
[Site "Polanica-Zdroj"]
[Date "2022.08.17"]
[Round "5.14"]
[White "Pieczulis, Blazej"]
[Black "Nowicki, Bartosz"]
[Result "1/2-1/2"]
[ECO "D12"]
[WhiteElo "1720"]
[BlackElo "2291"]
[Annotator "TA"]
[PlyCount "54"]
[EventDate "2022.08.13"]
[EventCountry "POL"]
[SourceTitle "playchess.com"]
[Source "ChessBase"]
[SourceQuality "1"]
[TimeControl "40/5400+30:1800+30"]

{[%evp 13,54,54,62,30,33,27,34,27,37,26,40,21,30,16,48,54,37,33,51,19,26,11,20,4,47,0,0,-6,0,-2,0,-10,23,16,22,31,25,22,60,43,45,16,82]} 1. d4 {[%emt 0:00:24]} d5 {[%emt 0:00:10]} 2. c4 {[%emt 0:00:05]} c6 {[%emt 0:00:06]} 3. e3 {[%emt 0:00:07]} Nf6 {[%emt 0:00:12]} 4. Nf3 {[%emt 0:00:04]} Bf5 {[%emt 0:01:18]} 5. Nc3 {[%emt 0:11:58]} dxc4 {[%emt 0:01:11]} 6. Bxc4 {[%emt 0:00:19]} e6 {[%emt 0:00:24]} 7. O-O {[%emt 0:03:39]} Be7 {[%emt 0:04:38]} 8. b3 {[%emt 0:12:05] D15: Slav Defence: 4 Nc3 a6 and gambit lines after 4 Nc3 dxc4.} O-O {[%emt 0:04:26]} 9. Bb2 {[%emt 0:00:31] [#]} b5 $146 {[%emt 0:02:05]} ({Predecessor:} 9... Nbd7 10. Qe2 Qa5 11. e4 Bg4 12. h3 Bh5 13. Qe3 e5 14. g4 Bg6 15. Rad1 Rfe8 16. g5 Nh5 17. h4 Bd8 {1-0 (36) Moldovanovic,D (2005)-Arbutina,S (2356) Kac 2016}) 10. Bd3 {[%emt 0:04:14] White is slightly better.} Bxd3 {[%emt 0:11:28]} 11. Qxd3 {[%emt 0:00:01]} Nbd7 {[%emt 0:00:43]} 12. Rfd1 {[%emt 0:00:51]} a5 {[%emt 0:09:47]} 13. e4 {[%emt 0:05:55][%cal Be3e4,Be4e5][%mdl 32]} Rc8 {[%emt 0:05:43]} 14. e5 {[%emt 0:13:10]} Nd5 {[%emt 0:05:14]} 15. Nxd5 {[%emt 0:00:46]} exd5 {[%emt 0:00:16]} 16. Qf5 {[%emt 0:00:59]} Re8 {[%emt 0:06:37]} 17. Rac1 {[%emt 0:01:44]} Nf8 {[%emt 0:02:23][%cal Bd7f8,Bf8e6,Be6g7][%mdl 32]} 18. Ne1 {[%emt 0:06:22][%cal Bf3e1,Be1g2,Bg2e3][%mdl 32]} Qd7 {[%emt 0:09:19]} 19. Qd3 {[%emt 0:01:58]} (19. Qxd7 $14 Nxd7 20. g3) 19... Ne6 $11 {[%emt 0:01:40]} 20. g3 {[%emt 0:00:27]} g6 {[%emt 0:01:04]} 21. f4 {[%emt 0:00:34]} Ng7 {[%emt 0:00:33]} 22. Ng2 {[%emt 0:02:14]} Rc7 {[%emt 0:07:40]} 23. Ne3 {[%emt 0:04:13]} h5 {[%emt 0:01:54]} 24. Kg2 {[%emt 0:00:29]} Rec8 {[%emt 0:05:45]} 25. h3 {[%emt 0:02:03]} Nf5 {[%emt 0:07:23]} 26. Nxf5 {[%emt 0:09:00]} Qxf5 {[%emt 0:00:11]} 27. Qf3 {[%emt 0:01:00]} Qe4 {[%emt 0:03:05] Weighted Error Value: White=0.13 (very precise) /Black=0.09 (flawless)} (27... c5 $11) 1/2-1/2

[Event "58th Akiba Rubinstein D 2022"]
[Site "Polanica-Zdroj"]
[Date "2022.08.17"]
[Round "5.15"]
[White "Grzebieniowski, Michal"]
[Black "Skrzypinski, Jan"]
[Result "1/2-1/2"]
[ECO "A85"]
[WhiteElo "1710"]
[BlackElo "1517"]
[Annotator "NA RC"]
[PlyCount "123"]
[EventDate "2022.08.13"]
[EventCountry "POL"]
[SourceTitle "playchess.com"]
[Source "ChessBase"]
[SourceQuality "1"]
[TimeControl "40/5400+30:1800+30"]

1. d4 {[%emt 0:00:02]} f5 {[%emt 0:00:03]} 2. c4 {[%emt 0:00:08]} Nf6 {[%emt 0:00:03]} 3. Nc3 {[%emt 0:00:06]} e6 {[%emt 0:00:03]} 4. Nf3 {[%emt 0:00:12]} d5 {[%emt 0:00:09]} 5. e3 {[%emt 0:00:37]} c6 {[%emt 0:00:04]} 6. Bd3 {[%emt 0:00:05]} Bd6 {[%emt 0:00:04]} 7. O-O {[%emt 0:00:07]} O-O {[%emt 0:00:03]} 8. Qc2 {[%emt 0:00:37]} Ne4 {[%emt 0:00:04]} 9. Ne1 {[%emt 0:00:43]} Qh4 {[%emt 0:02:24]} 10. g3 {[%emt 0:01:45]} Qf6 {[%emt 0:02:54]} 11. f3 {[%emt 0:00:22]} Nxc3 {[%emt 0:00:14]} 12. bxc3 {[%emt 0:00:02]} Na6 {[%emt 0:03:04]} 13. Bd2 {[%emt 0:03:44]} h5 {[%emt 0:03:32]} 14. Ng2 {[%emt 0:13:09]} Nc7 {[%emt 0:00:34]} 15. Rae1 {[%emt 0:03:29]} e5 {[%emt 0:00:44]} 16. Qb3 {[%emt 0:02:53]} Qf7 {[%emt 0:00:17]} 17. e4 {[%emt 0:01:33]} Be6 {[%emt 0:02:57]} 18. exf5 {[%emt 0:14:06]} Bxf5 {[%emt 0:00:30]} 19. Bxf5 {[%emt 0:00:16]} Qxf5 {[%emt 0:02:08]} 20. c5 {[%emt 0:00:59]} Be7 {[%emt 0:00:19]} 21. Rxe5 {[%emt 0:00:06]} Qd7 {[%emt 0:00:01]} 22. Rxh5 {[%emt 0:03:56]} Ne6 {[%emt 0:01:00]} 23. Qb1 {[%emt 0:03:04]} b6 {[%emt 0:00:37]} 24. cxb6 {[%emt 0:00:57]} axb6 {[%emt 0:00:00]} 25. Nf4 {[%emt 0:00:42]} Nxf4 {[%emt 0:00:13]} 26. Bxf4 {[%emt 0:00:02]} c5 {[%emt 0:00:32]} 27. Be5 {[%emt 0:01:06]} Bf6 {[%emt 0:00:11]} 28. Re1 {[%emt 0:04:56]} Bxe5 {[%emt 0:00:14]} 29. Rexe5 {[%emt 0:00:42]} Rf6 {[%emt 0:00:09]} 30. Qh7+ {[%emt 0:01:13]} Kf7 {[%emt 0:00:05]} 31. Rhg5 {[%emt 0:00:48]} Rg8 {[%emt 0:00:08]} 32. Rgf5 {[%emt 0:04:19]} Ra8 {[%emt 0:00:59]} 33. Qh5+ {[%emt 0:00:31]} Kg8 {[%emt 0:00:21]} 34. Rxf6 {[%emt 0:00:21]} gxf6 {[%emt 0:00:02]} 35. Qg6+ {[%emt 0:00:12]} Qg7 {[%emt 0:00:04]} 36. Qxg7+ {[%emt 0:00:10]} Kxg7 {[%emt 0:00:02]} 37. Rxd5 {[%emt 0:00:26]} cxd4 {[%emt 0:00:03]} 38. Rxd4 {[%emt 0:00:51]} Rxa2 {[%emt 0:00:03]} 39. Rb4 {[%emt 0:00:25]} Rc2 {[%emt 0:00:19]} 40. Rxb6 {[%emt 0:00:45]} Rxc3 {[%emt 0:00:05]} 41. Kg2 {[%emt 0:30:10]} Rc2+ {[%emt 0:30:13]} 42. Kh3 {[%emt 0:00:16]} Rf2 {[%emt 0:00:26]} 43. Rb3 {[%emt 0:00:11]} Kg6 {[%emt 0:00:07]} 44. g4 {[%emt 0:00:05]} Ra2 {[%emt 0:00:44]} 45. Kg3 {[%emt 0:00:11]} Ra6 {[%emt 0:01:14]} 46. h3 {[%emt 0:02:13]} Kh6 {[%emt 0:00:33]} 47. Kh4 {[%emt 0:00:16]} Rc6 {[%emt 0:00:20]} 48. Re3 {[%emt 0:02:47]} Rb6 {[%emt 0:00:08]} 49. Re4 {[%emt 0:00:40]} Ra6 {[%emt 0:00:10]} 50. f4 {[%emt 0:00:21]} Rb6 {[%emt 0:01:10]} 51. Re3 {[%emt 0:13:25]} Ra6 {[%emt 0:01:40]} 52. f5 {[%emt 0:01:17]} Kg7 {[%emt 0:00:35]} 53. Kh5 {[%emt 0:01:19]} Ra7 {[%emt 0:00:07]} 54. h4 {[%emt 0:00:20]} Rb7 {[%emt 0:00:17]} 55. g5 {[%emt 0:00:39]} Rf7 {[%emt 0:00:02]} 56. Kg4 {[%emt 0:00:20]} Rd7 {[%emt 0:00:39]} 57. Re4 {[%emt 0:01:35]} Rc7 {[%emt 0:00:23]} 58. h5 {[%emt 0:01:01]} fxg5 {[%emt 0:00:12]} 59. Kxg5 {[%emt 0:00:02]} Kf7 {[%emt 0:00:13]} 60. h6 {[%emt 0:01:42]} Rc6 {[%emt 0:00:20]} 61. Ra4 {[%emt 0:02:39]} Rc7 {[%emt 0:00:48]} 62. Ra8 1/2-1/2

[Event "58th Akiba Rubinstein D 2022"]
[Site "Polanica-Zdroj"]
[Date "2022.08.17"]
[Round "5.16"]
[White "Latacz, Grzegorz"]
[Black "Bialik, Nikodem"]
[Result "0-1"]
[ECO "A59"]
[WhiteElo "1449"]
[BlackElo "1638"]
[Annotator "NA RC"]
[PlyCount "120"]
[EventDate "2022.08.13"]
[EventCountry "POL"]
[SourceTitle "playchess.com"]
[Source "ChessBase"]
[SourceQuality "1"]
[TimeControl "40/5400+30:1800+30"]

1. d4 {[%emt 0:00:08]} Nf6 {[%emt 0:11:25]} 2. c4 {[%emt 0:00:05]} c5 {[%emt 0:00:08]} 3. d5 {[%emt 0:00:26]} b5 {[%emt 0:00:09]} 4. cxb5 {[%emt 0:00:09]} a6 {[%emt 0:00:06]} 5. bxa6 {[%emt 0:00:11]} Bxa6 {[%emt 0:00:05]} 6. Nc3 {[%emt 0:00:10]} d6 {[%emt 0:00:27]} 7. e4 {[%emt 0:00:22]} Bxf1 {[%emt 0:00:35]} 8. Kxf1 {[%emt 0:00:05]} g6 {[%emt 0:00:27]} 9. Nf3 {[%emt 0:00:20]} Bg7 {[%emt 0:01:23]} 10. g3 {[%emt 0:00:07]} O-O {[%emt 0:02:56]} 11. Kg2 {[%emt 0:00:04]} Nbd7 {[%emt 0:00:54]} 12. Qe2 {[%emt 0:02:43]} Qb6 {[%emt 0:01:37]} 13. a4 {[%emt 0:04:20]} Rfb8 {[%emt 0:10:29]} 14. Nb5 {[%emt 0:06:06]} Ne8 {[%emt 0:02:32]} 15. Bg5 {[%emt 0:14:58]} Kf8 {[%emt 0:01:56]} 16. Nd2 {[%emt 0:16:46]} Nc7 {[%emt 0:02:18]} 17. Nc4 {[%emt 0:03:50]} Qb7 {[%emt 0:00:07]} 18. Nxc7 {[%emt 0:05:07]} Qxc7 {[%emt 0:00:07]} 19. h4 {[%emt 0:05:22]} Nb6 {[%emt 0:01:03]} 20. h5 {[%emt 0:07:23]} Rxa4 {[%emt 0:05:10]} 21. Nxb6 {[%emt 0:03:44]} Rxa1 {[%emt 0:00:08]} 22. Rxa1 {[%emt 0:00:09]} Qxb6 {[%emt 0:00:10]} 23. hxg6 {[%emt 0:01:06]} hxg6 {[%emt 0:00:42]} 24. Rb1 {[%emt 0:01:58]} Qb4 {[%emt 0:03:40]} 25. Bd2 {[%emt 0:09:50]} Qa4 {[%emt 0:00:20]} 26. Bc1 {[%emt 0:03:28]} Rb4 {[%emt 0:05:32]} 27. f3 {[%emt 0:01:13]} Qb5 {[%emt 0:01:18]} 28. Qxb5 {[%emt 0:01:44]} Rxb5 {[%emt 0:00:06]} 29. Ra1 {[%emt 0:00:40]} Bd4 {[%emt 0:01:09]} 30. Ra2 {[%emt 0:01:42]} Kg7 {[%emt 0:00:15]} 31. Kf1 {[%emt 0:01:59]} f5 {[%emt 0:04:36]} 32. exf5 {[%emt 0:04:01]} gxf5 {[%emt 0:00:07]} 33. Ke2 {[%emt 0:01:56]} Be5 {[%emt 0:01:53]} 34. g4 {[%emt 0:00:52]} fxg4 {[%emt 0:00:28]} 35. fxg4 {[%emt 0:00:05]} Rb4 {[%emt 0:00:33]} 36. g5 {[%emt 0:01:27]} Rd4 {[%emt 0:00:33]} 37. Ra7 {[%emt 0:00:57]} Kf7 {[%emt 0:00:31]} 38. g6+ {[%emt 0:00:19]} Kxg6 {[%emt 0:00:56]} 39. Rxe7 {[%emt 0:00:19]} Rxd5 {[%emt 0:00:08]} 40. Rb7 {[%emt 0:01:33]} Rd4 {[%emt 0:03:02]} 41. Rb3 {[%emt 0:31:18]} Kf5 {[%emt 0:30:42]} 42. Rd3 {[%emt 0:00:29]} Re4+ {[%emt 0:01:58]} 43. Kd1 {[%emt 0:01:18]} c4 {[%emt 0:01:08]} 44. Rd2 {[%emt 0:00:43]} Ke6 {[%emt 0:00:39]} 45. Re2 {[%emt 0:00:36]} Rg4 {[%emt 0:01:03]} 46. Kc2 {[%emt 0:00:21]} d5 {[%emt 0:02:21]} 47. b3 {[%emt 0:00:39]} c3 {[%emt 0:00:11]} 48. Rxe5+ {[%emt 0:00:45]} Kxe5 {[%emt 0:00:13]} 49. Kxc3 {[%emt 0:00:06]} d4+ {[%emt 0:00:29]} 50. Kc4 {[%emt 0:00:18]} Ke4 {[%emt 0:00:46]} 51. b4 {[%emt 0:00:17]} Rg2 {[%emt 0:00:26]} 52. Bh6 {[%emt 0:00:15]} Rc2+ {[%emt 0:00:36]} 53. Kb3 {[%emt 0:00:02]} d3 {[%emt 0:00:19]} 54. b5 {[%emt 0:00:02]} Kd5 {[%emt 0:01:29]} 55. b6 {[%emt 0:00:16]} Kc6 {[%emt 0:02:07]} 56. Be3 {[%emt 0:00:01]} Kb7 {[%emt 0:00:22]} 57. Bd4 {[%emt 0:00:13]} Ka6 {[%emt 0:06:23]} 58. Be3 {[%emt 0:00:02]} Re2 {[%emt 0:01:00]} 59. Bd4 {[%emt 0:00:13]} Ra2 {[%emt 0:00:31]} 60. Bb2 {[%emt 0:01:52]} d2 {[%emt 0:00:06]} 0-1

[Event "58th Akiba Rubinstein D 2022"]
[Site "Polanica-Zdroj"]
[Date "2022.08.17"]
[Round "5.18"]
[White "Stepinski, Piotr"]
[Black "Bartosik, Dawid"]
[Result "1-0"]
[ECO "B27"]
[WhiteElo "1568"]
[BlackElo "1443"]
[Annotator "NA RC"]
[PlyCount "107"]
[EventDate "2022.08.13"]
[EventCountry "POL"]
[SourceTitle "playchess.com"]
[Source "ChessBase"]
[SourceQuality "1"]
[TimeControl "40/5400+30:1800+30"]

1. e4 {[%emt 0:00:18]} c5 {[%emt 0:00:02]} 2. Nf3 {[%emt 0:00:08]} g6 {[%emt 0:00:20]} 3. c3 {[%emt 0:00:07]} Bg7 {[%emt 0:00:12]} 4. d4 {[%emt 0:00:07]} cxd4 {[%emt 0:00:05]} 5. cxd4 {[%emt 0:00:03]} d5 {[%emt 0:00:14]} 6. e5 {[%emt 0:00:05]} Bg4 {[%emt 0:00:16]} 7. Bb5+ {[%emt 0:00:09]} Nc6 {[%emt 0:05:42]} 8. Bxc6+ {[%emt 0:01:16]} bxc6 {[%emt 0:00:52]} 9. Nbd2 {[%emt 0:00:27]} f6 {[%emt 0:03:59]} 10. h3 {[%emt 0:06:15]} Bd7 {[%emt 0:03:56]} 11. O-O {[%emt 0:02:09]} e6 {[%emt 0:01:08]} 12. b3 {[%emt 0:02:24]} Ne7 {[%emt 0:03:47]} 13. Ba3 {[%emt 0:01:40]} O-O {[%emt 0:03:56]} 14. Re1 {[%emt 0:19:53]} f5 {[%emt 0:00:20]} 15. Qc2 {[%emt 0:11:21]} Rf7 {[%emt 0:03:05]} 16. Bc5 {[%emt 0:04:42]} f4 {[%emt 0:05:44]} 17. Nb1 {[%emt 0:13:40]} Nf5 {[%emt 0:07:41]} 18. Nc3 {[%emt 0:01:08]} g5 {[%emt 0:06:39]} 19. Rad1 {[%emt 0:03:46]} h5 {[%emt 0:05:05]} 20. Nh2 {[%emt 0:02:36]} Bf8 {[%emt 0:05:44]} 21. Na4 {[%emt 0:00:38]} Rg7 {[%emt 0:08:57]} 22. Bxf8 {[%emt 0:01:08]} Qxf8 {[%emt 0:01:56]} 23. Nc5 {[%emt 0:00:24]} Bc8 {[%emt 0:01:38]} 24. f3 {[%emt 0:14:40]} Ne3 {[%emt 0:02:45]} 25. Rxe3 {[%emt 0:00:05]} fxe3 {[%emt 0:00:12]} 26. Qd3 {[%emt 0:00:16]} a5 {[%emt 0:08:19]} 27. Qxe3 {[%emt 0:02:02]} Raa7 {[%emt 0:03:38]} 28. Rc1 {[%emt 0:04:38]} Raf7 {[%emt 0:04:51]} 29. Rd1 {[%emt 0:02:02]} Rg6 {[%emt 0:04:43]} 30. Rc1 {[%emt 0:02:05]} Rfg7 {[%emt 0:00:25]} 31. a3 {[%emt 0:00:40]} g4 {[%emt 0:04:37]} 32. hxg4 {[%emt 0:00:30]} h4 {[%emt 0:01:26]} 33. Rf1 {[%emt 0:00:56]} Qe7 {[%emt 0:02:04]} 34. Rf2 {[%emt 0:00:49]} Bd7 {[%emt 0:01:07]} 35. Kf1 {[%emt 0:02:03]} Be8 {[%emt 0:01:07]} 36. f4 {[%emt 0:00:53]} Rxg4 {[%emt 0:00:37]} 37. Nxg4 {[%emt 0:00:18]} Rxg4 {[%emt 0:00:08]} 38. f5 {[%emt 0:00:59]} exf5 {[%emt 0:00:35]} 39. Rxf5 {[%emt 0:00:41]} Rg3 {[%emt 0:00:56]} 40. Rf3 {[%emt 0:00:21]} Rxf3+ 41. Qxf3 {[%emt 0:30:12]} Qf7 {[%emt 0:31:30]} 42. Qxf7+ {[%emt 0:00:11]} Bxf7 {[%emt 0:00:03]} 43. Kf2 {[%emt 0:00:13]} Kf8 {[%emt 0:00:25]} 44. Nb7 {[%emt 0:01:26]} Ke7 {[%emt 0:00:33]} 45. Nxa5 {[%emt 0:00:10]} Kd7 {[%emt 0:00:14]} 46. Nb7 {[%emt 0:00:12]} Kc7 {[%emt 0:00:22]} 47. Nc5 {[%emt 0:00:04]} Bg6 {[%emt 0:00:30]} 48. b4 {[%emt 0:00:17]} Bf5 {[%emt 0:00:22]} 49. a4 {[%emt 0:00:09]} Kb6 {[%emt 0:00:34]} 50. e6 {[%emt 0:00:10]} Kc7 {[%emt 0:00:28]} 51. a5 {[%emt 0:00:05]} Kb8 {[%emt 0:00:32]} 52. e7 {[%emt 0:00:20]} Bg6 {[%emt 0:00:10]} 53. Nd7+ {[%emt 0:00:04]} Kc7 {[%emt 0:00:42]} 54. Nf6 {[%emt 0:00:03]} 1-0

[Event "58th Akiba Rubinstein D 2022"]
[Site "Polanica-Zdroj"]
[Date "2022.08.17"]
[Round "5.19"]
[White "Wziatek, Marek"]
[Black "Suszczynski, Dominik"]
[Result "0-1"]
[ECO "A10"]
[WhiteElo "1617"]
[BlackElo "1329"]
[Annotator "NA RC"]
[PlyCount "76"]
[EventDate "2022.08.13"]
[EventCountry "POL"]
[SourceTitle "playchess.com"]
[Source "ChessBase"]
[SourceQuality "1"]
[TimeControl "40/5400+30:1800+30"]

1. c4 {[%emt 0:00:04]} f5 {[%emt 0:00:05]} 2. Nc3 {[%emt 0:00:14]} Nf6 {[%emt 0:00:07]} 3. g3 {[%emt 0:02:57]} g6 {[%emt 0:00:18]} 4. Bg2 {[%emt 0:00:55]} Bg7 {[%emt 0:00:15]} 5. d4 {[%emt 0:01:09]} O-O {[%emt 0:01:20]} 6. Nf3 {[%emt 0:01:31]} d6 {[%emt 0:01:07]} 7. O-O {[%emt 0:01:09]} Qe8 {[%emt 0:02:12]} 8. Nd5 {[%emt 0:14:08]} Nxd5 {[%emt 0:00:12]} 9. cxd5 {[%emt 0:00:01]} c6 {[%emt 0:02:42]} 10. Qb3 {[%emt 0:02:28]} Kh8 {[%emt 0:11:22]} 11. Bf4 {[%emt 0:10:31]} cxd5 {[%emt 0:05:49]} 12. Qxd5 {[%emt 0:00:21]} Nc6 {[%emt 0:00:22]} 13. Be3 {[%emt 0:05:27]} Bd7 {[%emt 0:22:11]} 14. Rfd1 {[%emt 0:00:12]} Rd8 {[%emt 0:00:15]} 15. Rd2 {[%emt 0:02:09]} e5 {[%emt 0:05:22]} 16. Bg5 {[%emt 0:14:23]} Be6 {[%emt 0:00:42]} 17. Qb5 {[%emt 0:00:06]} Ne7 {[%emt 0:11:52]} 18. Qxb7 {[%emt 0:06:31]} Rd7 {[%emt 0:00:01]} 19. Qa6 {[%emt 0:00:56]} e4 {[%emt 0:01:36]} 20. Bxe7 {[%emt 0:00:53]} Qxe7 {[%emt 0:00:21]} 21. e3 {[%emt 0:03:30]} exf3 {[%emt 0:00:30]} 22. Bxf3 {[%emt 0:00:02]} d5 {[%emt 0:01:36]} 23. Rc1 {[%emt 0:00:19]} Rd6 {[%emt 0:02:57]} 24. Qa3 {[%emt 0:01:11]} Rfd8 {[%emt 0:04:37]} 25. Rdc2 {[%emt 0:00:22]} R6d7 {[%emt 0:02:31]} 26. Qa5 {[%emt 0:00:25]} f4 {[%emt 0:02:46]} 27. gxf4 {[%emt 0:03:39]} Bf5 {[%emt 0:00:53]} 28. Rc7 {[%emt 0:03:29]} Rxc7 {[%emt 0:02:01]} 29. Rxc7 {[%emt 0:00:01]} Qd6 {[%emt 0:03:42]} 30. Qxa7 {[%emt 0:00:42]} Rg8 {[%emt 0:03:56]} 31. a3 {[%emt 0:02:37]} Be4 {[%emt 0:00:46]} 32. Rd7 {[%emt 0:00:41]} Qe6 {[%emt 0:00:57]} 33. Re7 {[%emt 0:00:52]} Qh3 {[%emt 0:01:43]} 34. Bxe4 {[%emt 0:01:41]} dxe4 {[%emt 0:00:01]} 35. Rxg7 {[%emt 0:00:19]} Qg4+ {[%emt 0:00:58]} 36. Kf1 {[%emt 0:00:39]} Qd1+ {[%emt 0:00:16]} 37. Kg2 {[%emt 0:00:01]} Qf3+ {[%emt 0:00:01]} 38. Kf1 {[%emt 0:00:01]} Qd1+ {[%emt 0:05:55]} 0-1